fUSD/lending_fUSD_20250807
["ID","MTS","AMOUNT","RATE_DAILY","PERIOD"]
[377893144,1754602252324,-400.0,0.00019452,2]
[377893145,1754602252334,-1322.07,0.00019452,2]
[377893146,1754602252344,-400.0,0.00019452,2]
[377893147,1754602252353,-400.0,0.00019452,2]
[377893148,1754602252362,-1409.67,0.00019452,2]
[377893149,1754602252371,-400.0,0.00019452,2]
[377893150,1754602252382,-400.0,0.00019452,2]
[377893151,1754602252393,-400.0,0.00019452,2]
[377893152,1754602252403,-409.58,0.00019452,2]
[377893153,1754602252412,-620.94,0.00019452,2]
[377893154,1754602252422,-400.0,0.00019452,2]
[377893155,1754602252431,-400.0,0.00019452,2]
[377893156,1754602252441,-400.0,0.00019452,2]
[377893157,1754602252451,-400.0,0.00019452,2]
[377893158,1754602252461,-400.0,0.00019452,2]
[377893159,1754602252470,-189.2965592,0.00019452,2]
[377893160,1754602252479,-400.0,0.00019452,2]
[377893161,1754602252489,-738.62,0.00019452,2]
[377893162,1754602252498,-903.17,0.00019452,2]
[377893163,1754602252507,-430.52,0.00019452,2]
[377893164,1754602252517,-705.14,0.00019452,2]
[377893165,1754602252527,-636.87,0.00019452,2]
[377893166,1754602252537,-937.68,0.00019452,2]
[377893167,1754602252546,-1026.71,0.00019452,2]
[377893168,1754602252556,-400.0,0.00019452,2]
[377893169,1754602252566,-400.0,0.00019452,2]
[377893170,1754602252576,-1039.1,0.00019452,2]
[377893171,1754602252586,-400.0,0.00019452,2]
[377893172,1754602252596,-1558.6,0.00019452,2]
[377893173,1754602252606,-400.0,0.00019452,2]
[377893174,1754602252616,-408.46,0.00019452,2]
[377893175,1754602252626,-400.0,0.00019452,2]
[377893176,1754602252635,-1275.72,0.00019452,2]
[377893177,1754602252645,-1575.69,0.00019452,2]
[377893178,1754602252654,-400.0,0.00019452,2]
[377893179,1754602252664,-400.0,0.00019452,2]
[377893180,1754602252674,-986.82,0.00019452,2]
[377893181,1754602252683,-646.32,0.00019452,2]
[377893182,1754602252693,-411.88,0.00019452,2]
[377893183,1754602252702,-400.0,0.00019452,2]
[377893184,1754602252712,-400.0,0.00019452,2]
[377893185,1754602252721,-565.03,0.00019452,2]
[377893186,1754602252731,-400.0,0.00019452,2]
[377893187,1754602252740,-1202.01,0.00019452,2]
[377893188,1754602252752,-543.67,0.00019452,2]
[377893189,1754602252762,-424.7,0.00019452,2]
[377893190,1754602252773,-1221.92,0.00019452,2]
[377893191,1754602252784,-855.4,0.00019452,2]
[377893192,1754602252794,-400.0,0.00019452,2]
[377893193,1754602252804,-1534.34,0.00019452,2]
[377893194,1754602252814,-307.23347656,0.00019452,2]
[377893195,1754602252824,-579.75,0.00019452,2]
[377893196,1754602252834,-415.11,0.00019452,2]
[377893197,1754602252844,-762.53,0.00019452,2]
[377893198,1754602252854,-400.0,0.00019452,2]
[377893199,1754602252864,-719.78,0.00019452,2]
[377893200,1754602252874,-400.0,0.00019452,2]
[377893201,1754602252885,-400.0,0.00019452,2]
[377893202,1754602252895,-400.0,0.00019452,2]
[377893203,1754602252906,-487.58,0.00019452,2]
[377893204,1754602252916,-405.31544547,0.00019452,2]
[377893205,1754602252927,-400.0,0.00019452,2]
[377893206,1754602252938,-400.0,0.00019452,2]
[377893207,1754602252949,-400.0,0.00019452,2]
[377893208,1754602252958,-619.31,0.00019452,2]
[377893209,1754602252968,-400.0,0.00019452,2]
[377893210,1754602252978,-400.0,0.00019452,2]
[377893211,1754602252987,-400.0,0.00019452,2]
[377893212,1754602252997,-400.0,0.00019452,2]
[377893213,1754602253007,-400.0,0.00019452,2]
[377893214,1754602253017,-400.0,0.00019452,2]
[377893215,1754602253028,-2628.64,0.00019452,2]
[377893216,1754602253038,-400.0,0.00019452,2]
[377893217,1754602253048,-611.25,0.00019452,2]
[377893218,1754602253057,-1100.11,0.00019452,2]
[377893219,1754602253067,-1034.35,0.00019452,2]
[377893220,1754602253078,-400.0,0.00019452,2]
[377893221,1754602253087,-434.31,0.00019452,2]
[377893222,1754602253097,-1399.35,0.00019452,2]
[377893223,1754602253107,-544.64,0.00019452,2]
[377893224,1754602253116,-643.1,0.00019452,2]
[377893225,1754602253126,-448.6,0.00019452,2]
[377893226,1754602253138,-400.0,0.00019452,2]
[377893227,1754602253147,-532.69,0.00019452,2]
[377893228,1754602253157,-809.18,0.00019452,2]
[377893229,1754602253167,-616.62,0.00019452,2]
[377893230,1754602253176,-400.0,0.00019452,2]
[377893231,1754602253186,-1809.81,0.00019452,2]
[377893232,1754602253196,-400.0,0.00019452,2]
[377893233,1754602253206,-933.36,0.00019452,2]
[377893234,1754602253216,-409.62,0.00019452,2]
[377893235,1754602253226,-1681.74,0.00019452,2]
[377893236,1754602253236,-1466.88,0.00019452,2]
[377893237,1754602253246,-894.6,0.00019452,2]
[377893238,1754602253256,-400.0,0.00019452,2]
[377893239,1754602253266,-458.41419728,0.00019452,2]
[377893240,1754602253277,-400.0,0.00019452,2]
[377893241,1754602253287,-400.0,0.00019452,2]
[377893242,1754602253298,-491.99,0.00019452,2]
[377893243,1754602253311,-414.34,0.00019452,2]
[377893244,1754602253321,-1083.76,0.00019452,2]
[377893245,1754602253331,-491.15,0.00019452,2]
[377893246,1754602253341,-400.0,0.00019452,2]
[377893247,1754602253352,-400.0,0.00019452,2]
[377893248,1754602253362,-400.0,0.00019452,2]
[377893249,1754602253373,-400.0,0.00019452,2]
[377893250,1754602253383,-403.74,0.00019452,2]
[377893251,1754602253392,-400.0,0.00019452,2]
[377893252,1754602253403,-262.68319736,0.00019452,2]
[377893253,1754602253414,-809.26,0.00019452,2]
[377893254,1754602253425,-400.0,0.00019452,2]
[377893255,1754602253435,-799.41,0.00019452,2]
[377893256,1754602253444,-902.52,0.00019452,2]
[377893257,1754602253454,-400.0,0.00019452,2]
[377893258,1754602253465,-1379.89,0.00019452,2]
[377893259,1754602253475,-602.54,0.00019452,2]
[377893260,1754602253485,-460.62,0.00019452,2]
[377893261,1754602253495,-400.0,0.00019452,2]
[377893262,1754602253506,-558.2,0.00019452,2]
[377893263,1754602253517,-920.44,0.00019452,2]
[377893264,1754602253527,-592.78,0.00019452,2]
[377893265,1754602253538,-400.0,0.00019452,2]
[377893266,1754602253549,-400.0,0.00019452,2]
[377893267,1754602253559,-347.50246272,0.00019452,2]
[377893268,1754602253569,-597.35,0.00019452,2]
[377893269,1754602253579,-663.2,0.00019452,2]
[377893270,1754602253590,-400.0,0.00019452,2]
[377893271,1754602253600,-494.75,0.00019452,2]
[377893272,1754602253610,-976.15,0.00019452,2]
[377893273,1754602253620,-400.0,0.00019452,2]
[377893274,1754602253630,-827.67,0.00019452,2]
[377893275,1754602253640,-400.0,0.00019452,2]
[377893276,1754602253650,-400.0,0.00019452,2]
[377893277,1754602253660,-1384.64,0.00019452,2]
[377893278,1754602253670,-823.13,0.00019452,2]
[377893279,1754602253680,-400.0,0.00019452,2]
[377893280,1754602253691,-1289.53,0.00019452,2]
[377893281,1754602253701,-2382.07,0.00019452,2]
[377893282,1754602253711,-840.8,0.00019452,2]
[377893283,1754602253720,-730.83,0.00019452,2]
[377893284,1754602253731,-870.4,0.00019452,2]
[377893285,1754602253741,-702.07,0.00019452,2]
[377893286,1754602253751,-400.0,0.00019452,2]
[377893287,1754602253762,-400.0,0.00019452,2]
[377893288,1754602253771,-1051.28,0.00019452,2]
[377893289,1754602253781,-400.0,0.00019452,2]
[377893290,1754602253792,-480.34,0.00019452,2]
[377893291,1754602253803,-400.0,0.00019452,2]
[377893292,1754602253814,-950.36,0.00019452,2]
[377893293,1754602253824,-400.0,0.00019452,2]
[377893294,1754602253835,-788.72,0.00019452,2]
[377893295,1754602253846,-1565.86,0.00019452,2]
[377893296,1754602253856,-537.83,0.00019452,2]
[377893297,1754602253867,-586.66,0.00019452,2]
[377893298,1754602253878,-992.55,0.00019452,2]
[377893299,1754602253889,-2378.01,0.00019452,2]
[377893300,1754602253900,-400.0,0.00019452,2]
[377893301,1754602253911,-400.0,0.00019452,2]
[377893302,1754602253921,-422.66,0.00019452,2]
[377893303,1754602253932,-400.0,0.00019452,2]
[377893304,1754602253942,-400.0,0.00019452,2]
[377893305,1754602253952,-495.59,0.00019452,2]
[377893306,1754602253963,-400.0,0.00019452,2]
[377893307,1754602253973,-400.0,0.00019452,2]
[377893308,1754602253983,-456.33,0.00019452,2]
[377893309,1754602253994,-594.34,0.00019452,2]
[377893310,1754602254003,-400.0,0.00019452,2]
[377893311,1754602254014,-400.0,0.00019452,2]
[377893312,1754602254024,-603.19,0.00019452,2]
[377893313,1754602254035,-943.26,0.00019452,2]
[377893314,1754602254046,-1523.27,0.00019452,2]
[377893315,1754602254056,-735.02,0.00019452,2]
[377893316,1754602254066,-1694.5,0.00019452,2]
[377893317,1754602254078,-400.0,0.00019452,2]
[377893318,1754602254089,-462.34,0.00019452,2]
[377893319,1754602254099,-420.7,0.00019452,2]
[377893320,1754602254109,-534.94,0.00019452,2]
[377893321,1754602254119,-400.0,0.00019452,2]
[377893322,1754602254129,-400.44901714,0.00019452,2]
[377893323,1754602254139,-400.0,0.00019452,2]
[377893324,1754602254149,-400.0,0.00019452,2]
[377893325,1754602254159,-923.94,0.00019452,2]
[377893326,1754602254170,-885.76,0.00019452,2]
[377893327,1754602254180,-400.0,0.00019452,2]
[377893328,1754602254190,-471.36,0.00019452,2]
[377893329,1754602254200,-400.0,0.00019452,2]
[377893330,1754602254210,-483.34,0.00019452,2]
[377893331,1754602254220,-1023.27,0.00019452,2]
[377893332,1754602254231,-1536.92,0.00019452,2]
[377893333,1754602254241,-698.11,0.00019452,2]
[377893334,1754602254251,-400.0,0.00019452,2]
[377893335,1754602254261,-400.0,0.00019452,2]
[377893336,1754602254271,-400.48,0.00019452,2]
[377893337,1754602254282,-400.0,0.00019452,2]
[377893338,1754602254294,-400.0,0.00019452,2]
[377893339,1754602254306,-400.0,0.00019452,2]
[377893340,1754602254316,-2030.96,0.00019452,2]
[377893341,1754602254326,-1723.06,0.00019452,2]
[377893342,1754602254336,-400.0,0.00019452,2]
[377893343,1754602254346,-1366.34,0.00019452,2]
[377893344,1754602254356,-3069.74,0.00019452,2]
[377893345,1754602254367,-400.0,0.00019452,2]
[377893346,1754602254378,-429.9,0.00019452,2]
[377893347,1754602254389,-1966.41,0.00019452,2]
[377893348,1754602254399,-400.0,0.00019452,2]
[377893349,1754602254409,-746.29,0.00019452,2]
[377893350,1754602254420,-400.0,0.00019452,2]
[377893351,1754602254430,-724.24,0.00019452,2]
[377893352,1754602254440,-400.0,0.00019452,2]
[377893353,1754602254450,-400.0,0.00019452,2]
[377893354,1754602254461,-400.0,0.00019452,2]
[377893355,1754602254471,-699.68,0.00019452,2]
[377893356,1754602254481,-557.07,0.00019452,2]
[377893357,1754602254491,-400.0,0.00019452,2]
[377893358,1754602254501,-1242.52,0.00019452,2]
[377893359,1754602254511,-727.64,0.00019452,2]
[377893360,1754602254521,-1639.12,0.00019452,2]
[377893361,1754602254533,-1380.06,0.00019452,2]
[377893362,1754602254543,-3004.04,0.00019452,2]
[377893363,1754602254553,-521.03,0.00019452,2]
[377893364,1754602254563,-400.0,0.00019452,2]
[377893365,1754602254573,-400.0,0.00019452,2]
[377893366,1754602254583,-400.0,0.00019452,2]
[377893367,1754602254593,-1214.13,0.00019452,2]
[377893368,1754602254605,-400.0,0.00019452,2]
[377893369,1754602254615,-432.26092086,0.00019452,2]
[377893370,1754602254626,-511.82,0.00019452,2]
[377893371,1754602254637,-400.0,0.00019452,2]
[377893372,1754602254647,-936.65,0.00019452,2]
[377893373,1754602254658,-466.85,0.00019452,2]
[377893374,1754602254668,-400.0,0.00019452,2]
[377893375,1754602254679,-400.0,0.00019452,2]
[377893376,1754602254689,-564.11,0.00019452,2]
[377893377,1754602254701,-400.0,0.00019452,2]
[377893378,1754602254711,-1282.65,0.00019452,2]
[377893379,1754602254722,-447.07,0.00019452,2]
[377893380,1754602254732,-2261.11,0.00019452,2]
[377893381,1754602254743,-1196.79,0.00019452,2]
[377893382,1754602254754,-1041.05,0.00019452,2]
[377893383,1754602254764,-518.36,0.00019452,2]
[377893384,1754602254775,-743.14,0.00019452,2]
[377893385,1754602254785,-400.0,0.00019452,2]
[377893386,1754602254795,-400.0,0.00019452,2]
[377893387,1754602254805,-1558.42,0.00019452,2]
[377893388,1754602254814,-400.0,0.00019452,2]
[377893389,1754602254825,-1557.36,0.00019452,2]
[377893390,1754602254836,-1670.72,0.00019452,2]
[377893391,1754602254846,-400.0,0.00019452,2]
[377893392,1754602254856,-400.0,0.00019452,2]
[377893393,1754602254866,-1597.2,0.00019452,2]
[377893394,1754602254877,-779.44,0.00019452,2]
[377893395,1754602254887,-1035.48,0.00019452,2]
[377893396,1754602254898,-734.27,0.00019452,2]
[377893397,1754602254908,-742.2,0.00019452,2]
[377893398,1754602254919,-1439.28,0.00019452,2]
[377893399,1754602254929,-400.0,0.00019452,2]
[377893400,1754602254939,-400.0,0.00019452,2]
[377893401,1754602254950,-610.97,0.00019452,2]
[377893402,1754602254960,-808.98,0.00019452,2]
[377893403,1754602254970,-1550.46,0.00019452,2]
[377893404,1754602254980,-1000.0,0.00019452,2]
[377893405,1754602254991,-400.0,0.00019452,2]
[377893406,1754602255002,-400.0,0.00019452,2]
[377893407,1754602255012,-975.07,0.00019452,2]
[377893408,1754602255024,-1398.47,0.00019452,2]
[377893409,1754602255034,-400.0,0.00019452,2]
[377893410,1754602255044,-400.0,0.00019452,2]
[377893411,1754602255054,-1213.84,0.00019452,2]
[377893412,1754602255064,-1488.78,0.00019452,2]
[377893413,1754602255074,-400.0,0.00019452,2]
[377893414,1754602255084,-418.53,0.00019452,2]
[377893415,1754602255094,-471.96,0.00019452,2]
[377893416,1754602255104,-2118.32,0.00019452,2]
[377893417,1754602255114,-400.0,0.00019452,2]
[377893418,1754602255124,-400.0,0.00019452,2]
[377893419,1754602255134,-468.72,0.00019452,2]
[377893420,1754602255145,-1157.12,0.00019452,2]
[377893421,1754602255155,-604.41,0.00019452,2]
[377893422,1754602255166,-993.44,0.00019452,2]
[377893423,1754602255177,-1491.69,0.00019452,2]
[377893424,1754602255187,-1935.12,0.00019452,2]
[377893425,1754602255198,-470.93,0.00019452,2]
[377893426,1754602255209,-400.0,0.00019452,2]
[377893427,1754602255219,-1215.43,0.00019452,2]
[377893428,1754602255229,-996.82,0.00019452,2]
[377893429,1754602255240,-644.2,0.00019452,2]
[377893430,1754602255250,-400.0,0.00019452,2]
[377893431,1754602255260,-409.71,0.00019452,2]
[377893432,1754602255271,-2858.4,0.00019452,2]
[377893433,1754602255284,-1042.12,0.00019452,2]
[377893434,1754602255295,-400.0,0.00019452,2]
[377893435,1754602255311,-400.0,0.00019452,2]
[377893436,1754602255323,-400.0,0.00019452,2]
[377893437,1754602255333,-400.0,0.00019452,2]
[377893438,1754602255344,-670.74,0.00019452,2]
[377893439,1754602255354,-430.54,0.00019452,2]
[377893440,1754602255365,-400.0,0.00019452,2]
[377893441,1754602255376,-400.0,0.00019452,2]
[377893442,1754602255713,-913.4,0.00019452,2]
[377893443,1754602255724,-1281.55,0.00019452,2]
[377893444,1754602255734,-1278.18,0.00019452,2]
[377893445,1754602255744,-400.0,0.00019452,2]
[377893446,1754602255753,-400.0,0.00019452,2]
[377893447,1754602255763,-459.72,0.00019452,2]
[377893448,1754602255773,-708.03,0.00019452,2]
[377893449,1754602255784,-405.2,0.00019452,2]
[377893450,1754602255794,-728.58,0.00019452,2]
[377893451,1754602255804,-400.0,0.00019452,2]
[377893452,1754602255813,-400.0,0.00019452,2]
[377893453,1754602255823,-1412.24,0.00019452,2]
[377893454,1754602255832,-594.82,0.00019452,2]
[377893455,1754602255842,-1878.02,0.00019452,2]
[377893456,1754602255852,-1158.83,0.00019452,2]
[377893457,1754602255861,-2409.4,0.00019452,2]
[377893458,1754602255872,-1404.14,0.00019452,2]
[377893459,1754602255882,-400.0,0.00019452,2]
[377893460,1754602255892,-400.0,0.00019452,2]
[377893461,1754602255902,-433.93,0.00019452,2]
[377893462,1754602255912,-400.0,0.00019452,2]
[377893463,1754602255923,-1784.37,0.00019452,2]
[377893464,1754602255934,-400.0,0.00019452,2]
[377893465,1754602255943,-431.05,0.00019452,2]
[377893466,1754602255953,-1229.31,0.00019452,2]
[377893467,1754602255962,-1032.8,0.00019452,2]
[377893468,1754602255972,-1238.12,0.00019452,2]
[377893469,1754602255982,-1875.36,0.00019452,2]
[377893470,1754602255992,-890.77,0.00019452,2]
[377893471,1754602256001,-1269.5,0.00019452,2]
[377893472,1754602256010,-917.91,0.00019452,2]
[377893473,1754602256020,-926.64,0.00019452,2]
[377893474,1754602256030,-1399.73,0.00019452,2]
[377893475,1754602256040,-400.0,0.00019452,2]
[377893476,1754602256050,-495.59,0.00019452,2]
[377893477,1754602256059,-400.0,0.00019452,2]
[377893478,1754602256069,-412.89,0.00019452,2]
[377893479,1754602256078,-1758.77,0.00019452,2]
[377893480,1754602256088,-400.0,0.00019452,2]
[377893481,1754602256098,-694.26,0.00019452,2]
[377893482,1754602256108,-1164.16,0.00019452,2]
[377893483,1754602256117,-400.0,0.00019452,2]
[377893484,1754602256127,-400.0,0.00019452,2]
[377893485,1754602256136,-795.32,0.00019452,2]
[377893486,1754602256146,-2820.82,0.00019452,2]
[377893487,1754602256156,-400.0,0.00019452,2]
[377893488,1754602256165,-400.0,0.00019452,2]
[377893489,1754602256175,-400.0,0.00019452,2]
[377893490,1754602256185,-400.0,0.00019452,2]
[377893491,1754602256195,-400.0,0.00019452,2]
[377893492,1754602256205,-873.54,0.00019452,2]
[377893493,1754602256215,-400.0,0.00019452,2]
[377893494,1754602256225,-1655.91,0.00019452,2]
[377893495,1754602256234,-400.0,0.00019452,2]
[377893496,1754602256244,-250.0,0.00019452,2]
[377893497,1754602256253,-1501.18,0.00019452,2]
[377893498,1754602256263,-1005.23,0.00019452,2]
[377893499,1754602256273,-621.86,0.00019452,2]
[377893500,1754602256284,-1031.59,0.00019452,2]
[377893501,1754602256295,-400.0,0.00019452,2]
[377893502,1754602256309,-450.22,0.00019452,2]
[377893503,1754602256319,-400.0,0.00019452,2]
[377893504,1754602256328,-1835.55,0.00019452,2]
[377893505,1754602256339,-1122.2,0.00019452,2]
[377893506,1754602256349,-400.0,0.00019452,2]
[377893507,1754602256359,-1194.54,0.00019452,2]
[377893508,1754602256368,-407.11,0.00019452,2]
[377893509,1754602256380,-1149.15,0.00019452,2]
[377893510,1754602256390,-1510.37,0.00019452,2]
[377893511,1754602256400,-753.81,0.00019452,2]
[377893512,1754602256410,-400.0,0.00019452,2]
[377893513,1754602256419,-400.0,0.00019452,2]
[377893514,1754602256429,-1348.24,0.00019452,2]
[377893515,1754602256439,-433.97,0.00019452,2]
[377893516,1754602256449,-400.0,0.00019452,2]
[377893517,1754602256458,-400.0,0.00019452,2]
[377893518,1754602256468,-400.0,0.00019452,2]
[377893519,1754602256478,-1032.41,0.00019452,2]
[377893520,1754602256487,-1726.66,0.00019452,2]
[377893521,1754602256497,-1537.65,0.00019452,2]
[377893522,1754602256507,-161.955036,0.00019452,2]
[377893523,1754602256516,-161.955036,0.00019452,2]
[377893524,1754602256525,-729.84,0.00019452,2]
[377893525,1754602256535,-400.0,0.00019452,2]
[377893526,1754602256545,-400.0,0.00019452,2]
[377893527,1754602256555,-621.07,0.00019452,2]
[377893528,1754602256564,-550.85,0.00019452,2]
[377893529,1754602256574,-1697.71,0.00019452,2]
[377893530,1754602256583,-400.0,0.00019452,2]
[377893531,1754602256593,-1945.81,0.00019452,2]
[377893532,1754602256603,-1219.29,0.00019452,2]
[377893533,1754602256612,-400.0,0.00019452,2]
[377893534,1754602256622,-400.0,0.00019452,2]
[377893535,1754602256631,-1628.21,0.00019452,2]
[377893536,1754602256641,-400.0,0.00019452,2]
[377893537,1754602256650,-400.0,0.00019452,2]
[377893538,1754602256660,-400.0,0.00019452,2]
[377893539,1754602256669,-1170.62,0.00019452,2]
[377893540,1754602256679,-2179.56,0.00019452,2]
[377893541,1754602256688,-783.25,0.00019452,2]
[377893542,1754602256698,-400.0,0.00019452,2]
[377893543,1754602256708,-2140.21,0.00019452,2]
[377893544,1754602256717,-400.0,0.00019452,2]
[377893545,1754602256727,-2554.17,0.00019452,2]
[377893546,1754602256736,-1500.84,0.00019452,2]
[377893547,1754602256746,-825.89,0.00019452,2]
[377893548,1754602256756,-400.0,0.00019452,2]
[377893549,1754602256766,-613.71499036,0.00019452,2]
[377893550,1754602257738,-853.03,0.00019178,2]
[377893551,1754602257753,-1502.78500964,0.00019452,2]
[377893552,1754602257769,-400.0,0.00019452,2]
[377893553,1754602257785,-400.0,0.00019452,2]
[377893554,1754602257799,-400.0,0.00019452,2]
[377893555,1754602257812,-833.09,0.00019452,2]
[377893556,1754602257828,-853.57,0.00019452,2]
[377893557,1754602257843,-1617.31,0.00019452,2]
[377893558,1754602257857,-400.0,0.00019452,2]
[377893559,1754602257869,-400.0,0.00019452,2]
[377893560,1754602257882,-1095.03,0.00019452,2]
[377893561,1754602257899,-400.0,0.00019452,2]
[377893562,1754602257912,-2010.71,0.00019452,2]
[377893563,1754602257923,-400.0,0.00019452,2]
[377893564,1754602257938,-2097.98,0.00019452,2]
[377893565,1754602257951,-400.0,0.00019452,2]
[377893566,1754602257963,-1028.81607829,0.00019452,2]
[377893567,1754602257989,-400.98392171,0.00019452,2]
[377893568,1754602258001,-400.0,0.00019452,2]
[377893569,1754602258014,-415.88213087,0.00019452,2]
[377893570,1754602258027,-875.37394742,0.00019452,2]
[377893571,1754602258097,-159.83605258,0.00019452,2]
[377893572,1754602258110,-4044.78,0.00019452,2]
[377893573,1754602258123,-400.0,0.00019452,2]
[377893574,1754602258135,-400.0,0.00019452,2]
[377893575,1754602258148,-400.0,0.00019452,2]
[377893576,1754602258161,-400.0,0.00019452,2]
[377893577,1754602258173,-684.5,0.00019452,2]
[377893578,1754602258186,-400.0,0.00019452,2]
[377893579,1754602258198,-4.22888514,0.00019452,2]
[377893580,1754602258215,-929.01751374,0.00019452,2]
[377893581,1754602258370,-1414.08,0.00019178,2]
[377893582,1754602258383,-875.11360112,0.00019452,2]
[377893583,1754602258397,-400.0,0.00019452,2]
[377893584,1754602258409,-871.08,0.00019452,2]
[377893585,1754602258422,-1887.32,0.00019452,2]
[377893586,1754602258436,-1139.48,0.00019452,2]
[377893587,1754602258448,-1559.36,0.00019452,2]
[377893588,1754602258461,-1098.51,0.00019452,2]
[377893589,1754602258474,-400.0,0.00019452,2]
[377893590,1754602258487,-1589.88,0.00019452,2]
[377893591,1754602258500,-1443.1,0.00019452,2]
[377893592,1754602258513,-582.96,0.00019452,2]
[377893593,1754602258525,-1676.87,0.00019452,2]
[377893594,1754602258539,-705.62,0.00019452,2]
[377893595,1754602258552,-400.0,0.00019452,2]
[377893596,1754602258565,-715.50048097,0.00019452,2]
[377893597,1754602258581,-454.86951903,0.00019452,2]
[377893598,1754602258593,-649.31,0.00019452,2]
[377893599,1754602258606,-781.17,0.00019452,2]
[377893600,1754602258620,-893.64,0.00019452,2]
[377893601,1754602258631,-137.09296524,0.00019452,2]
[377893602,1754602259968,-929.99176825,0.00018657,2]
[377893603,1754602260041,-83.91705221,0.00018657,2]
[377893604,1754602260056,-1041.02544828,0.00018657,2]
[377893605,1754602260069,-1118.77518297,0.00018657,2]
[377893606,1754602260082,-1192.32648292,0.00018657,2]
[377893607,1754602260095,-211.58213282,0.00019078,2]
[377893608,1754602260108,-2276.33468995,0.00019169,2]
[377893609,1754602260121,-400.0,0.00019178,2]
[377893610,1754602260133,-2026.89,0.00019178,2]
[377893611,1754602260145,-400.0,0.00019178,2]
[377893612,1754602260157,-400.0,0.00019178,2]
[377893613,1754602260170,-1163.05703476,0.00019452,2]
[377893614,1754602260183,-2243.14,0.00019452,2]
[377893615,1754602260196,-400.0,0.00019452,2]
[377893616,1754602260209,-1810.11,0.00019452,2]
[377893617,1754602260221,-400.0,0.00019452,2]
[377893618,1754602260233,-400.0,0.00019452,2]
[377893619,1754602260246,-961.12,0.00019452,2]
[377893620,1754602260259,-573.99,0.00019452,2]
[377893621,1754602260272,-757.5,0.00019452,2]
[377893622,1754602260287,-634.68,0.00019452,2]
[377893623,1754602260302,-1982.19,0.00019452,2]
[377893624,1754602260312,-400.0,0.00019452,2]
[377893625,1754602260321,-482.11,0.00019452,2]
[377893626,1754602260331,-995.38,0.00019452,2]
[377893627,1754602260340,-400.0,0.00019452,2]
[377893628,1754602260350,-1632.12,0.00019452,2]
[377893629,1754602260360,-789.6,0.00019452,2]
[377893630,1754602260371,-400.0,0.00019452,2]
[377893631,1754602260382,-577.9,0.00019452,2]
[377893632,1754602260392,-400.0,0.00019452,2]
[377893633,1754602260402,-890.23,0.00019452,2]
[377893634,1754602260411,-411.86,0.00019452,2]
[377893635,1754602260421,-1301.07,0.00019452,2]
[377893636,1754602260430,-400.0,0.00019452,2]
[377893637,1754602260440,-447.72,0.00019452,2]
[377893638,1754602260450,-358.95032668,0.00019452,2]
[377893639,1754602260459,-1058.8,0.00019452,2]
[377893640,1754602260470,-527.95,0.00019452,2]
[377893641,1754602260480,-2494.69,0.00019452,2]
[377893642,1754602260489,-1532.38,0.00019452,2]
[377893643,1754602260498,-2649.17,0.00019452,2]